[Event "Titled Tuesday Blitz November 22 Late 2022"]
[White "Storey, Charles H"]
[Black "Xiong, Jeffery"]
[WhiteFideId "406686"]
[BlackFideId "2047640"]
[WhiteElo "2252"]
[BlackElo "2725"]
[Result "0-1"]
[Round "04"]
[TimeControl "180+1"]
[Date "2022.11.23"]
[WhiteClock "0:00:16"]
[BlackClock "0:01:07"]

1. c4 {[%clk 0:03:00]}  g6 {[%clk 0:02:50]} 2. g3 {[%clk 0:02:58]}  f5 {[%clk 0:02:47]} 3. Bg2 {[%clk 0:02:57]}  Bg7 {[%clk 0:02:47]} 4. Nf3 {[%clk 0:02:57]}  Nf6 {[%clk 0:02:48]} 5. d4 {[%clk 0:02:57]}  O-O {[%clk 0:02:48]} 6. Nc3 {[%clk 0:02:57]}  Nc6 {[%clk 0:02:49]} 7. O-O {[%clk 0:02:51]}  d6 {[%clk 0:02:49]} 8. d5 {[%clk 0:02:51]}  Na5 {[%clk 0:02:47]} 9. Nd2 {[%clk 0:02:45]}  c5 {[%clk 0:02:46]} 10. Qc2 {[%clk 0:02:38]}  e5 {[%clk 0:02:42]} 11. dxe6 {[%clk 0:02:30]}  Bxe6 {[%clk 0:02:42]} 12. b3 {[%clk 0:02:30]}  Nc6 {[%clk 0:02:40]} 13. e3 {[%clk 0:02:24]}  d5 {[%clk 0:02:23]} 14. Ba3 {[%clk 0:02:03]}  d4 {[%clk 0:02:12]} 15. Na4 {[%clk 0:01:56]}  dxe3 {[%clk 0:02:00]} 16. fxe3 {[%clk 0:01:52]}  Ng4 {[%clk 0:02:01]} 17. Nxc5 {[%clk 0:01:47]}  Nxe3 {[%clk 0:01:58]} 18. Qc1 {[%clk 0:01:28]}  Nxf1 {[%clk 0:01:39]} 19. Nxe6 {[%clk 0:01:12]}  Qxd2 {[%clk 0:01:35]} 20. Qxf1 {[%clk 0:01:12]}  Bxa1 {[%clk 0:01:17]} 21. Bxf8 {[%clk 0:01:01]}  Bd4+ {[%clk 0:01:13]} 22. Kh1 {[%clk 0:00:58]}  Rxf8 {[%clk 0:01:13]} 23. Bd5 {[%clk 0:00:32]}  Nb4 {[%clk 0:01:08]} 24. Nxd4+ {[%clk 0:00:23]}  Nxd5 {[%clk 0:01:07]} 25. Nf3 {[%clk 0:00:23]}  Ne3 {[%clk 0:01:06]} 26. Nxd2 {[%clk 0:00:17]}  Nxf1 {[%clk 0:01:07]} 27. Nxf1 {[%clk 0:00:18]}  Re8 {[%clk 0:01:05]} 28. Kg2 {[%clk 0:00:15]}  Re2+ {[%clk 0:01:06]} 29. Kf3 {[%clk 0:00:15]}  Rxa2 {[%clk 0:01:07]} 30. Ne3 {[%clk 0:00:16]}  Rb2 {[%clk 0:01:07]} 0-1


[Site "https://www.chess.com"]

[Event "Titled Tuesday Blitz November 22 Late 2022"]
[White "Taboas Rodriguez, Daniel"]
[Black "Bogaudinov, Rushan"]
[WhiteFideId "2208466"]
[BlackFideId "4129288"]
[WhiteElo "2329"]
[BlackElo "1997"]
[Result "0-1"]
[Round "04"]
[TimeControl "180+1"]
[Date "2022.11.23"]
[WhiteClock "0:00:06"]
[BlackClock "0:00:06"]

1. d4 {[%clk 0:03:00]}  Nf6 {[%clk 0:02:59]} 2. Nf3 {[%clk 0:03:01]}  d5 {[%clk 0:02:58]} 3. c4 {[%clk 0:03:01]}  dxc4 {[%clk 0:02:58]} 4. e3 {[%clk 0:02:56]}  e6 {[%clk 0:02:57]} 5. Bxc4 {[%clk 0:02:52]}  c5 {[%clk 0:02:57]} 6. O-O {[%clk 0:02:52]}  Nc6 {[%clk 0:02:55]} 7. Qe2 {[%clk 0:02:50]}  Be7 {[%clk 0:02:51]} 8. Rd1 {[%clk 0:02:49]}  Qc7 {[%clk 0:02:51]} 9. Nc3 {[%clk 0:02:45]}  a6 {[%clk 0:02:48]} 10. d5 {[%clk 0:02:39]}  exd5 {[%clk 0:02:47]} 11. Nxd5 {[%clk 0:02:39]}  Nxd5 {[%clk 0:02:46]} 12. Bxd5 {[%clk 0:02:40]}  O-O {[%clk 0:02:46]} 13. e4 {[%clk 0:02:40]}  Bg4 {[%clk 0:02:43]} 14. Be3 {[%clk 0:02:25]}  Ne5 {[%clk 0:02:40]} 15. Rac1 {[%clk 0:02:22]}  Kh8 {[%clk 0:02:10]} 16. b4 {[%clk 0:01:50]}  f5 {[%clk 0:01:53]} 17. Bxc5 {[%clk 0:01:47]}  Bxc5 {[%clk 0:01:49]} 18. Rxc5 {[%clk 0:01:47]}  Qe7 {[%clk 0:01:49]} 19. Re1 {[%clk 0:01:28]}  Nxf3+ {[%clk 0:01:45]} 20. gxf3 {[%clk 0:01:27]}  Bh3 {[%clk 0:01:45]} 21. Kh1 {[%clk 0:01:24]}  Rae8 {[%clk 0:01:03]} 22. Rg1 {[%clk 0:01:17]}  Rf6 {[%clk 0:00:57]} 23. Rg3 {[%clk 0:01:14]}  Rh6 {[%clk 0:00:57]} 24. Rc1 {[%clk 0:01:06]}  Qxb4 {[%clk 0:00:52]} 25. Rcg1 {[%clk 0:01:03]}  Re7 {[%clk 0:00:32]} 26. Qe3 {[%clk 0:00:42]}  Qd6 {[%clk 0:00:22]} 27. Qd4 {[%clk 0:00:29]}  Qf6 {[%clk 0:00:17]} 28. Qxf6 {[%clk 0:00:27]}  Rxf6 {[%clk 0:00:15]} 29. Rxh3 {[%clk 0:00:27]}  g6 {[%clk 0:00:14]} 30. Rhg3 {[%clk 0:00:27]}  b5 {[%clk 0:00:14]} 31. Rc1 {[%clk 0:00:26]}  fxe4 {[%clk 0:00:14]} 32. Bxe4 {[%clk 0:00:25]}  Rd6 {[%clk 0:00:14]} 33. Rgg1 {[%clk 0:00:26]}  Rd2 {[%clk 0:00:13]} 34. Rc2 {[%clk 0:00:25]}  Rxc2 {[%clk 0:00:12]} 35. Bxc2 {[%clk 0:00:25]}  Re2 {[%clk 0:00:13]} 36. Bb3 {[%clk 0:00:25]}  Rxf2 {[%clk 0:00:14]} 37. Bd5 {[%clk 0:00:24]}  Kg7 {[%clk 0:00:13]} 38. Rc1 {[%clk 0:00:23]}  Kf6 {[%clk 0:00:12]} 39. Rc6+ {[%clk 0:00:24]}  Ke5 {[%clk 0:00:13]} 40. Be4 {[%clk 0:00:24]}  Rxa2 {[%clk 0:00:12]} 41. Kg1 {[%clk 0:00:21]}  Kf4 {[%clk 0:00:11]} 42. Rf6+ {[%clk 0:00:21]}  Ke3 {[%clk 0:00:11]} 43. h4 {[%clk 0:00:21]}  b4 {[%clk 0:00:11]} 44. Rf7 {[%clk 0:00:21]}  b3 {[%clk 0:00:10]} 45. Rf8 {[%clk 0:00:22]}  b2 {[%clk 0:00:10]} 46. Rb8 {[%clk 0:00:22]}  a5 {[%clk 0:00:09]} 47. Kf1 {[%clk 0:00:15]}  a4 {[%clk 0:00:09]} 48. Kg1 {[%clk 0:00:15]}  a3 {[%clk 0:00:09]} 49. Kf1 {[%clk 0:00:16]}  Kf4 {[%clk 0:00:09]} 50. Rb4 {[%clk 0:00:13]}  Kg3 {[%clk 0:00:09]} 51. Ke1 {[%clk 0:00:12]}  Ra1+ {[%clk 0:00:08]} 52. Kd2 {[%clk 0:00:12]}  Rc1 {[%clk 0:00:09]} 53. Bd3 {[%clk 0:00:09]}  a2 {[%clk 0:00:06]} 54. Rg4+ {[%clk 0:00:06]}  Kf2 {[%clk 0:00:06]} 55. Be2 {[%clk 0:00:06]}  a1=Q {[%clk 0:00:06]} 0-1


[Site "https://www.chess.com"]

[Event "Titled Tuesday Blitz November 22 Late 2022"]
[White "Tarnowska, Aleksandra"]
[Black "Fiol, Fabrice"]
[WhiteFideId "1180967"]
[BlackFideId "611670"]
[WhiteElo "1776"]
[BlackElo "2444"]
[Result "0-1"]
[Round "04"]
[TimeControl "180+1"]
[Date "2022.11.23"]
[WhiteClock "0:00:04"]
[BlackClock "0:00:09"]

1. e4 {[%clk 0:02:50]}  c5 {[%clk 0:02:59]} 2. Nf3 {[%clk 0:02:50]}  e6 {[%clk 0:02:59]} 3. d4 {[%clk 0:02:47]}  cxd4 {[%clk 0:02:58]} 4. Nxd4 {[%clk 0:02:48]}  a6 {[%clk 0:02:59]} 5. Nc3 {[%clk 0:02:47]}  b5 {[%clk 0:02:58]} 6. a3 {[%clk 0:02:46]}  Bb7 {[%clk 0:02:58]} 7. Bd3 {[%clk 0:02:39]}  Qc7 {[%clk 0:02:51]} 8. O-O {[%clk 0:02:38]}  Nf6 {[%clk 0:02:51]} 9. Re1 {[%clk 0:02:29]}  d6 {[%clk 0:02:49]} 10. Bg5 {[%clk 0:02:23]}  Nbd7 {[%clk 0:02:48]} 11. Qd2 {[%clk 0:02:13]}  Be7 {[%clk 0:02:47]} 12. Rad1 {[%clk 0:02:11]}  O-O {[%clk 0:02:47]} 13. Re3 {[%clk 0:01:59]}  Ne5 {[%clk 0:02:42]} 14. Rh3 {[%clk 0:01:45]}  Nxd3 {[%clk 0:02:26]} 15. Qxd3 {[%clk 0:01:37]}  g6 {[%clk 0:02:12]} 16. Qf3 {[%clk 0:01:03]}  Ne8 {[%clk 0:02:00]} 17. Bh6 {[%clk 0:00:35]}  Ng7 {[%clk 0:01:56]} 18. Nce2 {[%clk 0:00:32]}  e5 {[%clk 0:01:50]} 19. Nb3 {[%clk 0:00:23]}  f5 {[%clk 0:01:31]} 20. Bxg7 {[%clk 0:00:15]}  Kxg7 {[%clk 0:01:30]} 21. Qe3 {[%clk 0:00:11]}  f4 {[%clk 0:01:19]} 22. Qd3 {[%clk 0:00:09]}  Rac8 {[%clk 0:01:16]} 23. c3 {[%clk 0:00:08]}  Qc4 {[%clk 0:01:13]} 24. Nd2 {[%clk 0:00:06]}  Qe6 {[%clk 0:00:59]} 25. Nf3 {[%clk 0:00:04]}  Rc7 {[%clk 0:00:53]} 26. Nh4 {[%clk 0:00:03]}  Qc4 {[%clk 0:00:44]} 27. Qxc4 {[%clk 0:00:03]}  Rxc4 {[%clk 0:00:44]} 28. Nf3 {[%clk 0:00:02]}  Rxe4 {[%clk 0:00:35]} 29. Nc1 {[%clk 0:00:02]}  Rc4 {[%clk 0:00:30]} 30. Nd3 {[%clk 0:00:02]}  e4 {[%clk 0:00:27]} 31. Nd2 {[%clk 0:00:02]}  exd3 {[%clk 0:00:20]} 32. Nxc4 {[%clk 0:00:02]}  bxc4 {[%clk 0:00:21]} 33. b3 {[%clk 0:00:02]}  d5 {[%clk 0:00:20]} 34. b4 {[%clk 0:00:02]}  g5 {[%clk 0:00:18]} 35. g3 {[%clk 0:00:02]}  f3 {[%clk 0:00:17]} 36. Rh5 {[%clk 0:00:02]}  Kg6 {[%clk 0:00:17]} 37. g4 {[%clk 0:00:02]}  Bf6 {[%clk 0:00:17]} 38. Re1 {[%clk 0:00:03]}  Rf7 {[%clk 0:00:14]} 39. Kf1 {[%clk 0:00:03]}  Re7 {[%clk 0:00:13]} 40. Rxe7 {[%clk 0:00:03]}  Bxe7 {[%clk 0:00:14]} 41. Ke1 {[%clk 0:00:03]}  a5 {[%clk 0:00:13]} 42. Rh3 {[%clk 0:00:03]}  axb4 {[%clk 0:00:13]} 43. axb4 {[%clk 0:00:04]}  d4 {[%clk 0:00:13]} 44. Kd2 {[%clk 0:00:03]}  dxc3+ {[%clk 0:00:12]} 45. Kxc3 {[%clk 0:00:04]}  Bf6+ {[%clk 0:00:11]} 46. Kd2 {[%clk 0:00:04]}  Be4 {[%clk 0:00:11]} 47. Rg3 {[%clk 0:00:04]}  c3+ {[%clk 0:00:11]} 48. Kc1 {[%clk 0:00:04]}  d2+ {[%clk 0:00:10]} 49. Kd1 {[%clk 0:00:04]}  Bd4 {[%clk 0:00:09]} 50. Rg1 {[%clk 0:00:04]}  Bxf2 {[%clk 0:00:09]} 51. Rf1 {[%clk 0:00:04]}  Be3 {[%clk 0:00:08]} 52. b5 {[%clk 0:00:04]}  c2# {[%clk 0:00:09]} 0-1


[Site "https://www.chess.com"]

[Event "Titled Tuesday Blitz November 22 Late 2022"]
[White "Terry, Renato"]
[Black "Boruchovsky, Avital"]
[WhiteFideId "3803457"]
[BlackFideId "2800055"]
[WhiteElo "2577"]
[BlackElo "2458"]
[Result "1-0"]
[Round "04"]
[TimeControl "180+1"]
[Date "2022.11.22"]
[WhiteClock "0:00:06"]
[BlackClock "0:00:02"]

1. Nf3 {[%clk 0:03:00]}  d5 {[%clk 0:02:56]} 2. e3 {[%clk 0:03:00]}  g6 {[%clk 0:02:55]} 3. c4 {[%clk 0:02:59]}  Bg7 {[%clk 0:02:49]} 4. cxd5 {[%clk 0:02:59]}  Nf6 {[%clk 0:02:50]} 5. Qa4+ {[%clk 0:02:55]}  Nbd7 {[%clk 0:02:49]} 6. Nc3 {[%clk 0:02:49]}  O-O {[%clk 0:02:49]} 7. Qh4 {[%clk 0:02:44]}  Nb6 {[%clk 0:02:31]} 8. e4 {[%clk 0:02:44]}  e6 {[%clk 0:02:14]} 9. dxe6 {[%clk 0:02:44]}  Bxe6 {[%clk 0:02:15]} 10. Be2 {[%clk 0:02:36]}  c5 {[%clk 0:02:11]} 11. d3 {[%clk 0:02:32]}  Ng4 {[%clk 0:02:04]} 12. Qxd8 {[%clk 0:02:06]}  Raxd8 {[%clk 0:02:03]} 13. O-O {[%clk 0:02:07]}  c4 {[%clk 0:01:42]} 14. d4 {[%clk 0:02:03]}  Bxd4 {[%clk 0:01:42]} 15. Nxd4 {[%clk 0:02:04]}  Rxd4 {[%clk 0:01:42]} 16. f4 {[%clk 0:01:18]}  Nf6 {[%clk 0:01:36]} 17. Be3 {[%clk 0:01:18]}  Rd7 {[%clk 0:01:18]} 18. h3 {[%clk 0:01:18]}  Re8 {[%clk 0:01:17]} 19. Rad1 {[%clk 0:01:11]}  Rxd1 {[%clk 0:01:12]} 20. Rxd1 {[%clk 0:01:11]}  Nfd7 {[%clk 0:01:01]} 21. Bf3 {[%clk 0:01:08]}  f6 {[%clk 0:01:01]} 22. Nb5 {[%clk 0:01:02]}  Rc8 {[%clk 0:00:36]} 23. a3 {[%clk 0:00:36]}  Kf8 {[%clk 0:00:35]} 24. Nxa7 {[%clk 0:00:33]}  Ra8 {[%clk 0:00:32]} 25. Nb5 {[%clk 0:00:33]}  Ra5 {[%clk 0:00:30]} 26. Nc7 {[%clk 0:00:26]}  Bf7 {[%clk 0:00:30]} 27. Bg4 {[%clk 0:00:24]}  Ke7 {[%clk 0:00:27]} 28. Bd2 {[%clk 0:00:19]}  Ra4 {[%clk 0:00:20]} 29. Bb4+ {[%clk 0:00:19]}  Kd8 {[%clk 0:00:20]} 30. Nb5 {[%clk 0:00:17]}  Be8 {[%clk 0:00:15]} 31. Nd6 {[%clk 0:00:17]}  Ra8 {[%clk 0:00:08]} 32. Nxb7+ {[%clk 0:00:16]}  Kc7 {[%clk 0:00:08]} 33. Nd6 {[%clk 0:00:17]}  g5 {[%clk 0:00:05]} 34. g3 {[%clk 0:00:16]}  h5 {[%clk 0:00:04]} 35. Bf3 {[%clk 0:00:15]}  h4 {[%clk 0:00:04]} 36. e5 {[%clk 0:00:16]}  Rd8 {[%clk 0:00:03]} 37. Nb5+ {[%clk 0:00:15]}  Kc8 {[%clk 0:00:02]} 38. e6 {[%clk 0:00:15]}  Nb8 {[%clk 0:00:01]} 39. Nd6+ {[%clk 0:00:07]}  Kc7 {[%clk 0:00:02]} 40. Nxe8+ {[%clk 0:00:07]}  Rxe8 {[%clk 0:00:02]} 41. f5 {[%clk 0:00:07]}  hxg3 {[%clk 0:00:02]} 42. Bd6+ {[%clk 0:00:05]}  Kc8 {[%clk 0:00:02]} 43. Bxg3 {[%clk 0:00:05]}  Na6 {[%clk 0:00:02]} 44. Rd6 {[%clk 0:00:05]}  Na4 {[%clk 0:00:01]} 45. Rxa6 {[%clk 0:00:06]}  Nxb2 {[%clk 0:00:02]} 46. Ra8# {[%clk 0:00:06]} 1-0


[Site "https://www.chess.com"]

[Event "Titled Tuesday Blitz November 22 Late 2022"]
[White "Thomas, Anysia"]
[Black "Fernandez Garcia, Gumersindo"]
[WhiteFideId "670472"]
[BlackFideId "24516740"]
[WhiteElo "2069"]
[BlackElo "2140"]
[Result "0-1"]
[Round "04"]
[TimeControl "180+1"]
[Date "2022.11.23"]
[WhiteClock "0:00:02"]
[BlackClock "0:01:15"]

1. d4 {[%clk 0:02:55]}  Nf6 {[%clk 0:02:58]} 2. c4 {[%clk 0:02:55]}  d6 {[%clk 0:02:57]} 3. Nf3 {[%clk 0:02:54]}  g6 {[%clk 0:02:56]} 4. Nc3 {[%clk 0:02:54]}  Bg7 {[%clk 0:02:56]} 5. h3 {[%clk 0:02:55]}  O-O {[%clk 0:02:57]} 6. e4 {[%clk 0:02:55]}  Nbd7 {[%clk 0:02:57]} 7. Be3 {[%clk 0:02:55]}  e5 {[%clk 0:02:55]} 8. d5 {[%clk 0:02:47]}  a5 {[%clk 0:02:52]} 9. g4 {[%clk 0:02:47]}  Nc5 {[%clk 0:02:49]} 10. Nd2 {[%clk 0:02:47]}  h5 {[%clk 0:02:45]} 11. Be2 {[%clk 0:02:32]}  hxg4 {[%clk 0:02:38]} 12. hxg4 {[%clk 0:02:33]}  Qe7 {[%clk 0:02:25]} 13. f3 {[%clk 0:02:11]}  Nh7 {[%clk 0:02:20]} 14. Qc2 {[%clk 0:02:07]}  Bf6 {[%clk 0:02:20]} 15. O-O-O {[%clk 0:02:07]}  Bg5 {[%clk 0:02:20]} 16. Bxg5 {[%clk 0:01:48]}  Nxg5 {[%clk 0:02:21]} 17. Nf1 {[%clk 0:01:43]}  Bd7 {[%clk 0:02:16]} 18. Ne3 {[%clk 0:01:37]}  Qf6 {[%clk 0:02:14]} 19. Rdf1 {[%clk 0:01:31]}  Kg7 {[%clk 0:02:07]} 20. Bd1 {[%clk 0:01:24]}  Rh8 {[%clk 0:02:05]} 21. b3 {[%clk 0:01:22]}  Rxh1 {[%clk 0:02:03]} 22. Rxh1 {[%clk 0:01:22]}  Rh8 {[%clk 0:02:02]} 23. Rxh8 {[%clk 0:01:18]}  Kxh8 {[%clk 0:02:03]} 24. Qh2+ {[%clk 0:01:17]}  Kg7 {[%clk 0:02:02]} 25. Ne2 {[%clk 0:01:17]}  Nxf3 {[%clk 0:02:01]} 26. Qg3 {[%clk 0:00:56]}  Nxe4 {[%clk 0:01:59]} 27. Qg2 {[%clk 0:00:45]}  Neg5 {[%clk 0:01:56]} 28. Ng3 {[%clk 0:00:37]}  Qf4 {[%clk 0:01:49]} 29. Qf2 {[%clk 0:00:19]}  Bxg4 {[%clk 0:01:43]} 30. Kb1 {[%clk 0:00:15]}  Bf5+ {[%clk 0:01:39]} 31. Kc1 {[%clk 0:00:10]}  Be4 {[%clk 0:01:34]} 32. Nxe4 {[%clk 0:00:10]}  Qxe4 {[%clk 0:01:32]} 33. Bxf3 {[%clk 0:00:08]}  Qxf3 {[%clk 0:01:32]} 34. Qg1 {[%clk 0:00:07]}  Ne4 {[%clk 0:01:28]} 35. Ng4 {[%clk 0:00:03]}  Qf4+ {[%clk 0:01:26]} 36. Kb2 {[%clk 0:00:02]}  Qd2+ {[%clk 0:01:25]} 37. Ka3 {[%clk 0:00:02]}  Qb4+ {[%clk 0:01:19]} 38. Kb2 {[%clk 0:00:02]}  Qc3+ {[%clk 0:01:19]} 39. Ka3 {[%clk 0:00:02]}  Qb4+ {[%clk 0:01:14]} 40. Kb2 {[%clk 0:00:02]}  a4 {[%clk 0:01:15]} 41. Qf1 {[%clk 0:00:02]}  a3+ {[%clk 0:01:15]} 42. Kb1 {[%clk 0:00:02]}  Nd2+ {[%clk 0:01:15]} 0-1


[Site "https://www.chess.com"]

[Event "Titled Tuesday Blitz November 22 Late 2022"]
[White "Todev, Simeon"]
[Black "Dzierzak, Radoslaw"]
[WhiteFideId "2925133"]
[BlackFideId "1161407"]
[WhiteElo "1938"]
[BlackElo "2111"]
[Result "1-0"]
[Round "04"]
[TimeControl "180+1"]
[Date "2022.11.23"]
[WhiteClock "0:00:08"]
[BlackClock "0:00:06"]

1. e4 {[%clk 0:02:55]}  c6 {[%clk 0:03:00]} 2. c4 {[%clk 0:02:53]}  d5 {[%clk 0:03:00]} 3. exd5 {[%clk 0:02:54]}  cxd5 {[%clk 0:03:01]} 4. d4 {[%clk 0:02:54]}  Nf6 {[%clk 0:02:59]} 5. Nc3 {[%clk 0:02:51]}  e6 {[%clk 0:02:59]} 6. Nf3 {[%clk 0:02:46]}  Bb4 {[%clk 0:02:58]} 7. Bd3 {[%clk 0:02:45]}  dxc4 {[%clk 0:02:57]} 8. Bxc4 {[%clk 0:02:45]}  O-O {[%clk 0:02:58]} 9. O-O {[%clk 0:02:44]}  Bxc3 {[%clk 0:02:56]} 10. bxc3 {[%clk 0:02:43]}  Qc7 {[%clk 0:02:56]} 11. Qe2 {[%clk 0:02:31]}  b6 {[%clk 0:02:43]} 12. Bg5 {[%clk 0:02:28]}  Nbd7 {[%clk 0:02:39]} 13. Rac1 {[%clk 0:02:24]}  Bb7 {[%clk 0:02:38]} 14. Bd3 {[%clk 0:02:21]}  Rfe8 {[%clk 0:02:08]} 15. h3 {[%clk 0:02:10]}  e5 {[%clk 0:01:56]} 16. Bxf6 {[%clk 0:01:59]}  e4 {[%clk 0:01:54]} 17. Be5 {[%clk 0:01:48]}  Nxe5 {[%clk 0:01:50]} 18. Nxe5 {[%clk 0:01:35]}  exd3 {[%clk 0:01:50]} 19. Qxd3 {[%clk 0:01:33]}  Rad8 {[%clk 0:01:50]} 20. Qg3 {[%clk 0:01:27]}  f6 {[%clk 0:01:44]} 21. Ng4 {[%clk 0:01:23]}  Qxg3 {[%clk 0:01:38]} 22. fxg3 {[%clk 0:01:22]}  h5 {[%clk 0:01:34]} 23. Nh2 {[%clk 0:01:17]}  Re2 {[%clk 0:01:19]} 24. Rf2 {[%clk 0:01:13]}  Rde8 {[%clk 0:01:19]} 25. Nf3 {[%clk 0:01:11]}  g5 {[%clk 0:01:00]} 26. Kf1 {[%clk 0:01:05]}  R2e3 {[%clk 0:00:47]} 27. g4 {[%clk 0:00:26]}  hxg4 {[%clk 0:00:33]} 28. hxg4 {[%clk 0:00:27]}  R8e4 {[%clk 0:00:31]} 29. c4 {[%clk 0:00:25]}  Rxg4 {[%clk 0:00:27]} 30. c5 {[%clk 0:00:24]}  Bxf3 {[%clk 0:00:15]} 31. gxf3 {[%clk 0:00:17]}  Rxd4 {[%clk 0:00:14]} 32. c6 {[%clk 0:00:17]}  Rd8 {[%clk 0:00:13]} 33. c7 {[%clk 0:00:18]}  Rc8 {[%clk 0:00:14]} 34. Rd2 {[%clk 0:00:17]}  Ree8 {[%clk 0:00:11]} 35. Rd7 {[%clk 0:00:18]}  Kf8 {[%clk 0:00:11]} 36. Rc6 {[%clk 0:00:16]}  Re7 {[%clk 0:00:08]} 37. Rxf6+ {[%clk 0:00:11]}  Ke8 {[%clk 0:00:06]} 38. Rd8+ {[%clk 0:00:06]}  Rxd8 {[%clk 0:00:06]} 39. Rf8+ {[%clk 0:00:07]}  Kxf8 {[%clk 0:00:03]} 40. cxd8=Q+ {[%clk 0:00:08]}  Re8 {[%clk 0:00:03]} 41. Qf6+ {[%clk 0:00:08]}  Kg8 {[%clk 0:00:03]} 42. Qxg5+ {[%clk 0:00:08]}  Kf8 {[%clk 0:00:04]} 43. Qf5+ {[%clk 0:00:09]}  Ke7 {[%clk 0:00:05]} 44. Qe5+ {[%clk 0:00:09]}  Kd7 {[%clk 0:00:05]} 45. Qg7+ {[%clk 0:00:09]}  Re7 {[%clk 0:00:05]} 46. Qd4+ {[%clk 0:00:09]}  Kc7 {[%clk 0:00:05]} 47. f4 {[%clk 0:00:10]}  a5 {[%clk 0:00:05]} 48. f5 {[%clk 0:00:09]}  Rd7 {[%clk 0:00:05]} 49. Qe5+ {[%clk 0:00:09]}  Kc6 {[%clk 0:00:05]} 50. f6 {[%clk 0:00:10]}  Rd6 {[%clk 0:00:05]} 51. f7 {[%clk 0:00:08]}  Rd8 {[%clk 0:00:06]} 52. Qe8+ {[%clk 0:00:08]} 1-0


[Site "https://www.chess.com"]

[Event "Titled Tuesday Blitz November 22 Late 2022"]
[White "Toniutti, Ezio"]
[Black "Torres Boch, Jose Francisco"]
[WhiteFideId "113034"]
[BlackFideId "2278383"]
[WhiteElo "2215"]
[BlackElo "2073"]
[Result "1-0"]
[Round "04"]
[TimeControl "180+1"]
[Date "2022.11.23"]
[WhiteClock "0:00:31"]
[BlackClock "0:00:35"]

1. d4 {[%clk 0:03:00]}  Nf6 {[%clk 0:02:56]} 2. c4 {[%clk 0:03:00]}  e6 {[%clk 0:02:56]} 3. g3 {[%clk 0:03:00]}  Bb4+ {[%clk 0:02:55]} 4. Bd2 {[%clk 0:03:00]}  Be7 {[%clk 0:02:55]} 5. Bg2 {[%clk 0:02:59]}  d5 {[%clk 0:02:56]} 6. Nf3 {[%clk 0:02:59]}  O-O {[%clk 0:02:56]} 7. O-O {[%clk 0:03:00]}  c6 {[%clk 0:02:57]} 8. Qc2 {[%clk 0:03:00]}  Nbd7 {[%clk 0:02:57]} 9. Bc3 {[%clk 0:03:00]}  b6 {[%clk 0:02:53]} 10. Nbd2 {[%clk 0:03:00]}  Ba6 {[%clk 0:02:52]} 11. b3 {[%clk 0:03:00]}  Rc8 {[%clk 0:02:52]} 12. e4 {[%clk 0:03:00]}  dxe4 {[%clk 0:02:40]} 13. Nxe4 {[%clk 0:03:00]}  c5 {[%clk 0:02:41]} 14. Rad1 {[%clk 0:02:48]}  Nxe4 {[%clk 0:02:34]} 15. Qxe4 {[%clk 0:02:46]}  Nf6 {[%clk 0:02:35]} 16. Qc2 {[%clk 0:02:40]}  cxd4 {[%clk 0:02:34]} 17. Nxd4 {[%clk 0:02:27]}  Qc7 {[%clk 0:02:34]} 18. Nc6 {[%clk 0:02:13]}  b5 {[%clk 0:02:22]} 19. Ba5 {[%clk 0:02:02]}  Qb7 {[%clk 0:02:21]} 20. Nb4 {[%clk 0:01:50]}  Nd5 {[%clk 0:01:58]} 21. Rxd5 {[%clk 0:01:14]}  Bxb4 {[%clk 0:01:29]} 22. Bxb4 {[%clk 0:01:10]}  exd5 {[%clk 0:01:27]} 23. Bxf8 {[%clk 0:01:07]}  Kxf8 {[%clk 0:01:10]} 24. Qxh7 {[%clk 0:01:04]}  bxc4 {[%clk 0:01:09]} 25. Re1 {[%clk 0:01:01]}  f6 {[%clk 0:01:04]} 26. Bf3 {[%clk 0:00:52]}  Qf7 {[%clk 0:00:59]} 27. Bh5 {[%clk 0:00:37]}  Qg8 {[%clk 0:00:51]} 28. Qg6 {[%clk 0:00:37]}  Bb5 {[%clk 0:00:48]} 29. bxc4 {[%clk 0:00:33]}  dxc4 {[%clk 0:00:46]} 30. Qf5 {[%clk 0:00:33]}  a6 {[%clk 0:00:35]} 31. Qxc8+ {[%clk 0:00:31]} 1-0


[Site "https://www.chess.com"]